[Event "Titled Tuesday Blitz May 03 Early 2022"]
[White "Simonovic, Miroslav"]
[Black "Shuvalov, Evgenij"]
[WhiteFideId "919152"]
[BlackFideId "4187237"]
[WhiteElo "2043"]
[BlackElo "2130"]
[Result "0-1"]
[Round "09"]
[TimeControl "180+1"]
[Date "2022.05.03"]
[WhiteClock "0:00:01"]
[BlackClock "0:00:19"]

1. d4 {[%clk 0:03:00]}  Nf6 {[%clk 0:02:59]} 2. Bg5 {[%clk 0:03:00]}  c5 {[%clk 0:02:56]} 3. Bxf6 {[%clk 0:03:00]}  gxf6 {[%clk 0:02:56]} 4. c3 {[%clk 0:03:01]}  Qb6 {[%clk 0:02:54]} 5. Qc2 {[%clk 0:03:01]}  cxd4 {[%clk 0:02:50]} 6. cxd4 {[%clk 0:03:02]}  Nc6 {[%clk 0:02:49]} 7. e3 {[%clk 0:03:02]}  d5 {[%clk 0:02:46]} 8. Nd2 {[%clk 0:03:01]}  Bg4 {[%clk 0:02:41]} 9. Be2 {[%clk 0:02:58]}  Bxe2 {[%clk 0:02:35]} 10. Nxe2 {[%clk 0:02:59]}  e6 {[%clk 0:02:36]} 11. O-O {[%clk 0:02:56]}  Bd6 {[%clk 0:02:33]} 12. g3 {[%clk 0:02:54]}  h5 {[%clk 0:02:31]} 13. h4 {[%clk 0:02:50]}  Ke7 {[%clk 0:02:27]} 14. a3 {[%clk 0:02:32]}  Rac8 {[%clk 0:02:26]} 15. Qd3 {[%clk 0:02:23]}  Qa6 {[%clk 0:02:11]} 16. Qxa6 {[%clk 0:02:21]}  bxa6 {[%clk 0:02:12]} 17. b4 {[%clk 0:02:21]}  a5 {[%clk 0:02:03]} 18. b5 {[%clk 0:02:21]}  Nb8 {[%clk 0:02:03]} 19. Rfc1 {[%clk 0:01:59]}  Nd7 {[%clk 0:01:53]} 20. a4 {[%clk 0:01:55]}  Nb6 {[%clk 0:01:53]} 21. Nb3 {[%clk 0:01:48]}  Bb4 {[%clk 0:01:50]} 22. Nc5 {[%clk 0:01:26]}  Rc7 {[%clk 0:01:40]} 23. Rc2 {[%clk 0:01:20]}  Rhc8 {[%clk 0:01:36]} 24. Rac1 {[%clk 0:01:19]}  Nxa4 {[%clk 0:01:25]} 25. Ra2 {[%clk 0:01:13]}  Nxc5 {[%clk 0:01:23]} 26. dxc5 {[%clk 0:01:13]}  Rxc5 {[%clk 0:01:24]} 27. Rxc5 {[%clk 0:01:13]}  Rxc5 {[%clk 0:01:25]} 28. Nd4 {[%clk 0:01:10]}  Kd7 {[%clk 0:01:12]} 29. f4 {[%clk 0:00:33]}  e5 {[%clk 0:01:10]} 30. fxe5 {[%clk 0:00:34]}  fxe5 {[%clk 0:01:11]} 31. Nf5 {[%clk 0:00:34]}  Rxb5 {[%clk 0:01:09]} 32. Ng7 {[%clk 0:00:34]}  Bc5 {[%clk 0:01:02]} 33. Nxh5 {[%clk 0:00:33]}  Bxe3+ {[%clk 0:01:02]} 34. Kg2 {[%clk 0:00:33]}  Ke6 {[%clk 0:00:57]} 35. g4 {[%clk 0:00:32]}  e4 {[%clk 0:00:52]} 36. Ng7+ {[%clk 0:00:28]}  Ke5 {[%clk 0:00:51]} 37. Nf5 {[%clk 0:00:28]}  Bf4 {[%clk 0:00:48]} 38. h5 {[%clk 0:00:26]}  d4 {[%clk 0:00:47]} 39. h6 {[%clk 0:00:25]}  Bxh6 {[%clk 0:00:46]} 40. Nxh6 {[%clk 0:00:26]}  Kf4 {[%clk 0:00:44]} 41. Nxf7 {[%clk 0:00:24]}  Kxg4 {[%clk 0:00:42]} 42. Nd6 {[%clk 0:00:24]}  Re5 {[%clk 0:00:38]} 43. Nc4 {[%clk 0:00:20]}  Rc5 {[%clk 0:00:37]} 44. Nxa5 {[%clk 0:00:18]}  e3 {[%clk 0:00:32]} 45. Nb3 {[%clk 0:00:17]}  Rc4 {[%clk 0:00:29]} 46. Rxa7 {[%clk 0:00:14]}  Rc2+ {[%clk 0:00:28]} 47. Kf1 {[%clk 0:00:14]}  d3 {[%clk 0:00:27]} 48. Rg7+ {[%clk 0:00:06]}  Kf4 {[%clk 0:00:24]} 49. Rf7+ {[%clk 0:00:06]}  Kg5 {[%clk 0:00:24]} 50. Rd7 {[%clk 0:00:03]}  Rc3 {[%clk 0:00:22]} 51. Rd5+ {[%clk 0:00:01]}  Kf4 {[%clk 0:00:20]} 52. Rd4+ {[%clk 0:00:01]}  Ke5 {[%clk 0:00:19]} 0-1


[Site "https://www.chess.com"]

[Event "Titled Tuesday Blitz May 03 Early 2022"]
[White "Sirosh, Ilja"]
[Black "Stanisz, Patryk"]
[WhiteFideId "4500458"]
[BlackFideId "1123106"]
[WhiteElo "2241"]
[BlackElo "1833"]
[Result "1-0"]
[Round "09"]
[TimeControl "180+1"]
[Date "2022.05.03"]
[WhiteClock "0:01:44"]
[BlackClock "0:00:03"]

1. e4 {[%clk 0:02:38]}  c5 {[%clk 0:02:57]} 2. Nf3 {[%clk 0:02:38]}  Nc6 {[%clk 0:02:57]} 3. d4 {[%clk 0:02:39]}  cxd4 {[%clk 0:02:57]} 4. Nxd4 {[%clk 0:02:40]}  Nf6 {[%clk 0:02:58]} 5. Nc3 {[%clk 0:02:40]}  e5 {[%clk 0:02:58]} 6. Ndb5 {[%clk 0:02:39]}  d6 {[%clk 0:02:56]} 7. Bg5 {[%clk 0:02:37]}  a6 {[%clk 0:02:55]} 8. Na3 {[%clk 0:02:38]}  b5 {[%clk 0:02:55]} 9. Nd5 {[%clk 0:02:38]}  Qa5+ {[%clk 0:02:56]} 10. Bd2 {[%clk 0:02:37]}  Qd8 {[%clk 0:02:55]} 11. Bg5 {[%clk 0:02:38]}  Be7 {[%clk 0:02:51]} 12. Bxf6 {[%clk 0:02:37]}  Bxf6 {[%clk 0:02:52]} 13. c4 {[%clk 0:02:38]}  O-O {[%clk 0:02:50]} 14. cxb5 {[%clk 0:02:37]}  Nd4 {[%clk 0:02:51]} 15. b6 {[%clk 0:02:35]}  Bg5 {[%clk 0:02:50]} 16. Bc4 {[%clk 0:02:35]}  Bb7 {[%clk 0:02:48]} 17. O-O {[%clk 0:02:35]}  Rb8 {[%clk 0:02:44]} 18. Qd3 {[%clk 0:02:35]}  Bxd5 {[%clk 0:02:30]} 19. Bxd5 {[%clk 0:02:36]}  Qxb6 {[%clk 0:02:11]} 20. Nc4 {[%clk 0:02:36]}  Qb5 {[%clk 0:01:46]} 21. b3 {[%clk 0:02:26]}  Rfd8 {[%clk 0:01:36]} 22. g3 {[%clk 0:02:25]}  h6 {[%clk 0:01:33]} 23. h4 {[%clk 0:02:25]}  Bf6 {[%clk 0:01:23]} 24. Rfc1 {[%clk 0:02:23]}  Rbc8 {[%clk 0:01:15]} 25. Kg2 {[%clk 0:02:17]}  Kf8 {[%clk 0:01:13]} 26. Rab1 {[%clk 0:02:14]}  g6 {[%clk 0:01:05]} 27. Qd1 {[%clk 0:02:13]}  Kg7 {[%clk 0:01:01]} 28. b4 {[%clk 0:02:13]}  h5 {[%clk 0:00:52]} 29. a4 {[%clk 0:02:13]}  Qb8 {[%clk 0:00:48]} 30. Qd3 {[%clk 0:02:11]}  Qa7 {[%clk 0:00:44]} 31. Na5 {[%clk 0:02:09]}  Qd7 {[%clk 0:00:36]} 32. Rxc8 {[%clk 0:02:05]}  Rxc8 {[%clk 0:00:37]} 33. b5 {[%clk 0:02:05]}  axb5 {[%clk 0:00:36]} 34. axb5 {[%clk 0:02:06]}  Qg4 {[%clk 0:00:25]} 35. b6 {[%clk 0:02:01]}  Rb8 {[%clk 0:00:18]} 36. Nc6 {[%clk 0:01:54]}  Nxc6 {[%clk 0:00:17]} 37. Bxc6 {[%clk 0:01:55]}  Bxh4 {[%clk 0:00:18]} 38. Qxd6 {[%clk 0:01:55]}  Rd8 {[%clk 0:00:07]} 39. Qxe5+ {[%clk 0:01:54]}  Bf6 {[%clk 0:00:08]} 40. Qf4 {[%clk 0:01:54]}  Qc8 {[%clk 0:00:06]} 41. Bd5 {[%clk 0:01:50]}  Qb8 {[%clk 0:00:04]} 42. Qxb8 {[%clk 0:01:49]}  Rxb8 {[%clk 0:00:05]} 43. b7 {[%clk 0:01:49]}  Be5 {[%clk 0:00:05]} 44. f4 {[%clk 0:01:49]}  Bd6 {[%clk 0:00:04]} 45. Rb6 {[%clk 0:01:49]}  Bc7 {[%clk 0:00:04]} 46. e5 {[%clk 0:01:48]}  Kf8 {[%clk 0:00:03]} 47. Ra6 {[%clk 0:01:47]}  Ke7 {[%clk 0:00:03]} 48. Kf3 {[%clk 0:01:46]}  f6 {[%clk 0:00:03]} 49. exf6+ {[%clk 0:01:46]}  Kf8 {[%clk 0:00:03]} 50. f7 {[%clk 0:01:46]}  Ke7 {[%clk 0:00:02]} 51. Rxg6 {[%clk 0:01:46]}  Rf8 {[%clk 0:00:02]} 52. Rg8 {[%clk 0:01:46]}  Bb8 {[%clk 0:00:03]} 53. Ke4 {[%clk 0:01:44]}  Rxf7 {[%clk 0:00:02]} 54. Bxf7 {[%clk 0:01:44]}  Kxf7 {[%clk 0:00:03]} 55. Rxb8 {[%clk 0:01:44]} 1-0


[Site "https://www.chess.com"]

[Event "Titled Tuesday Blitz May 03 Early 2022"]
[White "Sokolovsky, Yahli"]
[Black "Martinez Alcantara, Jose Eduardo"]
[WhiteFideId "2820242"]
[BlackFideId "3805662"]
[WhiteElo "1770"]
[BlackElo "2690"]
[Result "0-1"]
[Round "09"]
[TimeControl "180+1"]
[Date "2022.05.03"]
[WhiteClock "0:00:01"]
[BlackClock "0:00:18"]

1. b3 {[%clk 0:03:00]}  c5 {[%clk 0:02:56]} 2. Bb2 {[%clk 0:03:01]}  d5 {[%clk 0:02:56]} 3. e3 {[%clk 0:03:01]}  Nf6 {[%clk 0:02:56]} 4. Nf3 {[%clk 0:02:59]}  e6 {[%clk 0:02:57]} 5. d4 {[%clk 0:02:58]}  cxd4 {[%clk 0:02:57]} 6. exd4 {[%clk 0:02:58]}  b6 {[%clk 0:02:57]} 7. Bb5+ {[%clk 0:02:53]}  Bd7 {[%clk 0:02:57]} 8. Bd3 {[%clk 0:02:53]}  Be7 {[%clk 0:02:57]} 9. O-O {[%clk 0:02:53]}  Nc6 {[%clk 0:02:57]} 10. a3 {[%clk 0:02:53]}  O-O {[%clk 0:02:58]} 11. Nbd2 {[%clk 0:02:54]}  Bc8 {[%clk 0:02:58]} 12. Ne5 {[%clk 0:02:52]}  Bb7 {[%clk 0:02:59]} 13. Ndf3 {[%clk 0:02:50]}  Bd6 {[%clk 0:02:49]} 14. Re1 {[%clk 0:02:49]}  Ne7 {[%clk 0:02:49]} 15. Qe2 {[%clk 0:02:38]}  h6 {[%clk 0:02:43]} 16. Nd2 {[%clk 0:02:28]}  Rc8 {[%clk 0:02:33]} 17. Qf3 {[%clk 0:02:21]}  Nd7 {[%clk 0:02:27]} 18. Qh3 {[%clk 0:02:12]}  Bxe5 {[%clk 0:02:23]} 19. dxe5 {[%clk 0:02:12]}  Nc5 {[%clk 0:02:22]} 20. Bf1 {[%clk 0:02:07]}  Nf5 {[%clk 0:02:17]} 21. Rad1 {[%clk 0:01:53]}  Qg5 {[%clk 0:02:02]} 22. Nf3 {[%clk 0:01:52]}  Qg6 {[%clk 0:02:02]} 23. Bd4 {[%clk 0:01:34]}  h5 {[%clk 0:01:49]} 24. Nh4 {[%clk 0:01:19]}  Nxh4 {[%clk 0:01:45]} 25. Qxh4 {[%clk 0:01:20]}  Qxc2 {[%clk 0:01:41]} 26. Bxc5 {[%clk 0:01:13]}  Qxc5 {[%clk 0:01:30]} 27. Qxh5 {[%clk 0:01:14]}  g6 {[%clk 0:01:24]} 28. Qh4 {[%clk 0:00:54]}  Rfe8 {[%clk 0:01:08]} 29. Rd3 {[%clk 0:00:55]}  Qe7 {[%clk 0:01:07]} 30. Qf4 {[%clk 0:00:50]}  Kg7 {[%clk 0:01:05]} 31. b4 {[%clk 0:00:20]}  Rh8 {[%clk 0:00:53]} 32. Rf3 {[%clk 0:00:19]}  Rh4 {[%clk 0:00:53]} 33. Qg3 {[%clk 0:00:20]}  Rh5 {[%clk 0:00:49]} 34. Rf4 {[%clk 0:00:13]}  Qg5 {[%clk 0:00:35]} 35. Qf3 {[%clk 0:00:09]}  Rc7 {[%clk 0:00:34]} 36. h3 {[%clk 0:00:04]}  Rh4 {[%clk 0:00:23]} 37. Rxh4 {[%clk 0:00:03]}  Qxh4 {[%clk 0:00:24]} 38. Bd3 {[%clk 0:00:03]}  Qg5 {[%clk 0:00:21]} 39. Re3 {[%clk 0:00:02]}  d4 {[%clk 0:00:19]} 40. Re4 {[%clk 0:00:01]}  Bxe4 {[%clk 0:00:19]} 41. Qxe4 {[%clk 0:00:02]}  Rd7 {[%clk 0:00:17]} 42. f4 {[%clk 0:00:02]}  Qg3 {[%clk 0:00:17]} 43. Kf1 {[%clk 0:00:01]}  Qe3 {[%clk 0:00:17]} 44. Qxe3 {[%clk 0:00:02]}  dxe3 {[%clk 0:00:18]} 45. Ke2 {[%clk 0:00:03]}  Rc7 {[%clk 0:00:19]} 46. Kxe3 {[%clk 0:00:03]}  Rc3 {[%clk 0:00:19]} 47. a4 {[%clk 0:00:04]}  Ra3 {[%clk 0:00:19]} 48. Kd4 {[%clk 0:00:04]}  Rxa4 {[%clk 0:00:19]} 49. Kc3 {[%clk 0:00:04]}  Ra2 {[%clk 0:00:19]} 50. Be4 {[%clk 0:00:04]}  Rf2 {[%clk 0:00:19]} 51. Bf3 {[%clk 0:00:05]}  Rf1 {[%clk 0:00:18]} 52. Kc4 {[%clk 0:00:04]}  Rb1 {[%clk 0:00:18]} 53. Be4 {[%clk 0:00:03]}  Rb2 {[%clk 0:00:19]} 54. Bf3 {[%clk 0:00:03]}  a5 {[%clk 0:00:18]} 55. b5 {[%clk 0:00:01]}  Rb4+ {[%clk 0:00:18]} 0-1


[Site "https://www.chess.com"]

[Event "Titled Tuesday Blitz May 03 Early 2022"]
[White "Stribuk, Artiom"]
[Black "Oparin, Grigoriy"]
[WhiteFideId "13515659"]
[BlackFideId "24125890"]
[WhiteElo "2259"]
[BlackElo "2665"]
[Result "0-1"]
[Round "09"]
[TimeControl "180+1"]
[Date "2022.05.03"]
[WhiteClock "0:00:08"]
[BlackClock "0:02:03"]

1. d4 {[%clk 0:03:00]}  Nf6 {[%clk 0:02:59]} 2. c4 {[%clk 0:02:51]}  e6 {[%clk 0:03:00]} 3. g3 {[%clk 0:02:51]}  d5 {[%clk 0:03:00]} 4. Nf3 {[%clk 0:02:51]}  Bb4+ {[%clk 0:02:59]} 5. Bd2 {[%clk 0:02:50]}  a5 {[%clk 0:03:00]} 6. Bg2 {[%clk 0:02:48]}  dxc4 {[%clk 0:03:00]} 7. Qc2 {[%clk 0:02:39]}  b6 {[%clk 0:03:00]} 8. O-O {[%clk 0:02:35]}  Bb7 {[%clk 0:02:58]} 9. Bg5 {[%clk 0:02:23]}  O-O {[%clk 0:02:52]} 10. Nbd2 {[%clk 0:02:06]}  Bxd2 {[%clk 0:02:47]} 11. Bxd2 {[%clk 0:02:01]}  b5 {[%clk 0:02:39]} 12. a4 {[%clk 0:01:59]}  Be4 {[%clk 0:02:40]} 13. Qc1 {[%clk 0:01:53]}  c6 {[%clk 0:02:40]} 14. Qd1 {[%clk 0:01:05]}  Nbd7 {[%clk 0:02:39]} 15. b3 {[%clk 0:01:06]}  cxb3 {[%clk 0:02:37]} 16. Qxb3 {[%clk 0:01:06]}  b4 {[%clk 0:02:31]} 17. Rfc1 {[%clk 0:01:06]}  Qb6 {[%clk 0:02:18]} 18. e3 {[%clk 0:00:46]}  c5 {[%clk 0:02:12]} 19. Be1 {[%clk 0:00:28]}  Rfc8 {[%clk 0:02:12]} 20. dxc5 {[%clk 0:00:17]}  Nxc5 {[%clk 0:02:11]} 21. Qd1 {[%clk 0:00:16]}  Qb7 {[%clk 0:02:08]} 22. Rc4 {[%clk 0:00:12]}  Bd5 {[%clk 0:02:06]} 23. Rd4 {[%clk 0:00:12]}  Nb3 {[%clk 0:02:05]} 24. Rxd5 {[%clk 0:00:11]}  Qxd5 {[%clk 0:02:06]} 25. Qxd5 {[%clk 0:00:09]}  Nxd5 {[%clk 0:02:04]} 26. Rb1 {[%clk 0:00:10]}  Nc5 {[%clk 0:02:02]} 27. Nd4 {[%clk 0:00:09]}  Nxa4 {[%clk 0:02:02]} 28. Nb3 {[%clk 0:00:09]}  Nac3 {[%clk 0:02:03]} 29. Ra1 {[%clk 0:00:09]}  a4 {[%clk 0:02:03]} 30. Nd4 {[%clk 0:00:08]}  b3 {[%clk 0:02:03]} 0-1


[Site "https://www.chess.com"]

[Event "Titled Tuesday Blitz May 03 Early 2022"]
[White "Subaste, Arman"]
[Black "Matveeva, Olga"]
[WhiteFideId "5221080"]
[BlackFideId "24107018"]
[WhiteElo "1856"]
[BlackElo "2083"]
[Result "1-0"]
[Round "09"]
[TimeControl "180+1"]
[Date "2022.05.03"]
[WhiteClock "0:00:57"]
[BlackClock "0:00:13"]

1. d4 {[%clk 0:03:00]}  Nf6 {[%clk 0:02:59]} 2. Nf3 {[%clk 0:03:00]}  e6 {[%clk 0:02:59]} 3. g3 {[%clk 0:03:00]}  d5 {[%clk 0:02:58]} 4. Bg2 {[%clk 0:03:01]}  Be7 {[%clk 0:02:58]} 5. O-O {[%clk 0:03:01]}  O-O {[%clk 0:02:58]} 6. c4 {[%clk 0:03:01]}  dxc4 {[%clk 0:02:58]} 7. Ne5 {[%clk 0:03:01]}  Nc6 {[%clk 0:02:57]} 8. Bxc6 {[%clk 0:03:01]}  bxc6 {[%clk 0:02:58]} 9. Nxc6 {[%clk 0:03:01]}  Qe8 {[%clk 0:02:57]} 10. Qa4 {[%clk 0:02:59]}  Bb7 {[%clk 0:02:42]} 11. Nxe7+ {[%clk 0:02:57]}  Qxe7 {[%clk 0:02:43]} 12. Qxc4 {[%clk 0:02:57]}  e5 {[%clk 0:02:38]} 13. dxe5 {[%clk 0:02:52]}  Qxe5 {[%clk 0:02:39]} 14. Nc3 {[%clk 0:02:52]}  Rac8 {[%clk 0:02:13]} 15. Bf4 {[%clk 0:02:34]}  Qh5 {[%clk 0:02:11]} 16. f3 {[%clk 0:02:32]}  Rfe8 {[%clk 0:01:42]} 17. e4 {[%clk 0:02:29]}  g5 {[%clk 0:01:39]} 18. Be3 {[%clk 0:02:24]}  g4 {[%clk 0:01:39]} 19. Bd4 {[%clk 0:02:22]}  Re6 {[%clk 0:01:23]} 20. Bxf6 {[%clk 0:02:19]}  Rxf6 {[%clk 0:01:23]} 21. fxg4 {[%clk 0:02:16]}  Qg6 {[%clk 0:01:09]} 22. Rxf6 {[%clk 0:02:11]}  Qxf6 {[%clk 0:01:09]} 23. Rf1 {[%clk 0:02:05]}  Qe6 {[%clk 0:01:07]} 24. Qxe6 {[%clk 0:02:02]}  fxe6 {[%clk 0:01:08]} 25. Rd1 {[%clk 0:01:57]}  Bc6 {[%clk 0:01:04]} 26. Rd4 {[%clk 0:01:54]}  Kf7 {[%clk 0:01:03]} 27. Rc4 {[%clk 0:01:47]}  Bb7 {[%clk 0:01:01]} 28. Rc5 {[%clk 0:01:42]}  Kf6 {[%clk 0:01:00]} 29. Kf2 {[%clk 0:01:34]}  h6 {[%clk 0:00:51]} 30. Ke3 {[%clk 0:01:32]}  Ba6 {[%clk 0:00:47]} 31. e5+ {[%clk 0:01:25]}  Ke7 {[%clk 0:00:43]} 32. Ne4 {[%clk 0:01:23]}  Bb7 {[%clk 0:00:33]} 33. Nf6 {[%clk 0:01:20]}  c6 {[%clk 0:00:27]} 34. Kf4 {[%clk 0:01:16]}  Rd8 {[%clk 0:00:26]} 35. g5 {[%clk 0:01:08]}  hxg5+ {[%clk 0:00:26]} 36. Kxg5 {[%clk 0:01:07]}  Rd2 {[%clk 0:00:25]} 37. h4 {[%clk 0:01:05]}  Rxb2 {[%clk 0:00:25]} 38. h5 {[%clk 0:01:05]}  Rxa2 {[%clk 0:00:25]} 39. h6 {[%clk 0:01:04]}  Rh2 {[%clk 0:00:25]} 40. Nh5 {[%clk 0:01:02]}  Kf7 {[%clk 0:00:18]} 41. Rc4 {[%clk 0:01:01]}  Kg8 {[%clk 0:00:18]} 42. Rd4 {[%clk 0:01:00]}  Ba6 {[%clk 0:00:17]} 43. Rd8+ {[%clk 0:00:59]}  Kf7 {[%clk 0:00:15]} 44. Rd7+ {[%clk 0:00:59]}  Ke8 {[%clk 0:00:15]} 45. Rxa7 {[%clk 0:00:58]}  Be2 {[%clk 0:00:15]} 46. g4 {[%clk 0:00:57]}  Rg2 {[%clk 0:00:13]} 47. Nf6+ {[%clk 0:00:56]}  Kd8 {[%clk 0:00:13]} 48. h7 {[%clk 0:00:57]} 1-0


[Site "https://www.chess.com"]

[Event "Titled Tuesday Blitz May 03 Early 2022"]
[White "Taboas Rodriguez, Daniel"]
[Black "Zemlyanskii, Ivan"]
[WhiteFideId "2208466"]
[BlackFideId "24249971"]
[WhiteElo "2429"]
[BlackElo "1759"]
[Result "1/2-1/2"]
[Round "09"]
[TimeControl "180+1"]
[Date "2022.05.03"]
[WhiteClock "0:00:30"]
[BlackClock "0:00:13"]

1. d4 {[%clk 0:03:00]}  Nf6 {[%clk 0:03:00]} 2. Nf3 {[%clk 0:02:58]}  b6 {[%clk 0:02:58]} 3. c4 {[%clk 0:02:56]}  e6 {[%clk 0:02:57]} 4. Nc3 {[%clk 0:02:56]}  Bb4 {[%clk 0:02:52]} 5. Qc2 {[%clk 0:02:56]}  c5 {[%clk 0:02:50]} 6. d5 {[%clk 0:02:43]}  O-O {[%clk 0:02:39]} 7. e4 {[%clk 0:02:41]}  d6 {[%clk 0:02:33]} 8. Be2 {[%clk 0:02:36]}  Bxc3+ {[%clk 0:02:27]} 9. bxc3 {[%clk 0:02:35]}  e5 {[%clk 0:02:26]} 10. O-O {[%clk 0:02:33]}  Nbd7 {[%clk 0:02:17]} 11. h3 {[%clk 0:02:32]}  Re8 {[%clk 0:02:16]} 12. Nh2 {[%clk 0:02:30]}  Nf8 {[%clk 0:02:14]} 13. Bg4 {[%clk 0:02:18]}  Nxg4 {[%clk 0:02:04]} 14. Nxg4 {[%clk 0:02:16]}  Ng6 {[%clk 0:02:00]} 15. Kh2 {[%clk 0:02:10]}  Qh4 {[%clk 0:01:50]} 16. g3 {[%clk 0:02:06]}  Qe7 {[%clk 0:01:40]} 17. Kg2 {[%clk 0:01:41]}  Qd7 {[%clk 0:01:28]} 18. f3 {[%clk 0:01:26]}  f5 {[%clk 0:01:21]} 19. exf5 {[%clk 0:01:25]}  Qxf5 {[%clk 0:01:20]} 20. Qxf5 {[%clk 0:01:24]}  Bxf5 {[%clk 0:01:18]} 21. Ne3 {[%clk 0:01:25]}  Bd3 {[%clk 0:01:15]} 22. Rd1 {[%clk 0:01:24]}  e4 {[%clk 0:01:13]} 23. fxe4 {[%clk 0:01:18]}  Bxe4+ {[%clk 0:01:12]} 24. Kh2 {[%clk 0:01:18]}  Rf8 {[%clk 0:01:09]} 25. Rf1 {[%clk 0:01:18]}  Rxf1 {[%clk 0:01:04]} 26. Nxf1 {[%clk 0:01:19]}  Rf8 {[%clk 0:00:58]} 27. Be3 {[%clk 0:01:07]}  Ne5 {[%clk 0:00:56]} 28. Nd2 {[%clk 0:01:05]}  Bd3 {[%clk 0:00:51]} 29. Bf4 {[%clk 0:01:01]}  Nxc4 {[%clk 0:00:49]} 30. Nxc4 {[%clk 0:00:55]}  Bxc4 {[%clk 0:00:49]} 31. a4 {[%clk 0:00:52]}  h6 {[%clk 0:00:41]} 32. a5 {[%clk 0:00:44]}  Bxd5 {[%clk 0:00:34]} 33. axb6 {[%clk 0:00:44]}  axb6 {[%clk 0:00:34]} 34. Rd1 {[%clk 0:00:42]}  Rf5 {[%clk 0:00:34]} 35. Bxd6 {[%clk 0:00:41]}  Rf2+ {[%clk 0:00:31]} 36. Kg1 {[%clk 0:00:41]}  Rg2+ {[%clk 0:00:32]} 37. Kf1 {[%clk 0:00:41]}  Bc6 {[%clk 0:00:31]} 38. Be5 {[%clk 0:00:37]}  Rh2 {[%clk 0:00:29]} 39. Rd6 {[%clk 0:00:36]}  Bb5+ {[%clk 0:00:26]} 40. Kg1 {[%clk 0:00:35]}  Rxh3 {[%clk 0:00:27]} 41. Rxb6 {[%clk 0:00:33]}  Bd3 {[%clk 0:00:27]} 42. Rb7 {[%clk 0:00:30]}  g6 {[%clk 0:00:26]} 43. Rg7+ {[%clk 0:00:29]}  Kf8 {[%clk 0:00:26]} 44. Rc7 {[%clk 0:00:29]}  c4 {[%clk 0:00:26]} 45. Kg2 {[%clk 0:00:24]}  Rh5 {[%clk 0:00:25]} 46. Bg7+ {[%clk 0:00:22]}  Ke8 {[%clk 0:00:24]} 47. g4 {[%clk 0:00:23]}  Rh4 {[%clk 0:00:23]} 48. Kg3 {[%clk 0:00:23]}  g5 {[%clk 0:00:21]} 49. Kf3 {[%clk 0:00:21]}  Rh3+ {[%clk 0:00:20]} 50. Kg2 {[%clk 0:00:20]}  Rh4 {[%clk 0:00:20]} 51. Kg3 {[%clk 0:00:20]}  Be2 {[%clk 0:00:19]} 52. Rc6 {[%clk 0:00:17]}  Rxg4+ {[%clk 0:00:19]} 53. Kf2 {[%clk 0:00:18]}  Bd3 {[%clk 0:00:19]} 54. Bxh6 {[%clk 0:00:18]}  Rf4+ {[%clk 0:00:15]} 55. Kg3 {[%clk 0:00:17]}  Rf5 {[%clk 0:00:16]} 56. Rg6 {[%clk 0:00:15]}  Re5 {[%clk 0:00:15]} 57. Rxg5 {[%clk 0:00:13]}  Re3+ {[%clk 0:00:15]} 58. Kf4 {[%clk 0:00:14]}  Re4+ {[%clk 0:00:15]} 59. Kf3 {[%clk 0:00:14]}  Re1 {[%clk 0:00:13]} 60. Bg7 {[%clk 0:00:13]}  Rf1+ {[%clk 0:00:12]} 61. Ke3 {[%clk 0:00:13]}  Rf7 {[%clk 0:00:12]} 62. Bd4 {[%clk 0:00:12]}  Rh7 {[%clk 0:00:11]} 63. Rg8+ {[%clk 0:00:10]}  Kf7 {[%clk 0:00:11]} 64. Ra8 {[%clk 0:00:10]}  Rh3+ {[%clk 0:00:11]} 65. Kf4 {[%clk 0:00:10]}  Ke6 {[%clk 0:00:11]} 66. Ra6+ {[%clk 0:00:08]}  Kd5 {[%clk 0:00:09]} 67. Ra5+ {[%clk 0:00:09]}  Kc6 {[%clk 0:00:08]} 68. Ra6+ {[%clk 0:00:09]}  Kb7 {[%clk 0:00:07]} 69. Ra7+ {[%clk 0:00:09]}  Kc6 {[%clk 0:00:06]} 70. Ra6+ {[%clk 0:00:10]}  Kb5 {[%clk 0:00:06]} 71. Rb6+ {[%clk 0:00:10]}  Ka4 {[%clk 0:00:06]} 72. Rb8 {[%clk 0:00:10]}  Ka3 {[%clk 0:00:06]} 73. Ke5 {[%clk 0:00:10]}  Rh5+ {[%clk 0:00:06]} 74. Kd6 {[%clk 0:00:10]}  Ka2 {[%clk 0:00:07]} 75. Rb4 {[%clk 0:00:08]}  Rh6+ {[%clk 0:00:07]} 76. Kc5 {[%clk 0:00:08]}  Rh5+ {[%clk 0:00:07]} 77. Kd6 {[%clk 0:00:08]}  Rh4 {[%clk 0:00:07]} 78. Rb8 {[%clk 0:00:08]}  Rh6+ {[%clk 0:00:07]} 79. Ke5 {[%clk 0:00:08]}  Rh5+ {[%clk 0:00:07]} 80. Kf4 {[%clk 0:00:09]}  Rh1 {[%clk 0:00:07]} 81. Ke5 {[%clk 0:00:09]}  Rh5+ {[%clk 0:00:07]} 82. Kf4 {[%clk 0:00:09]}  Rh2 {[%clk 0:00:07]} 83. Ke5 {[%clk 0:00:09]}  Ka3 {[%clk 0:00:05]} 84. Kf4 {[%clk 0:00:10]}  Rh5 {[%clk 0:00:03]} 85. Be3 {[%clk 0:00:09]}  Ra5 {[%clk 0:00:02]} 86. Bc1+ {[%clk 0:00:08]}  Ka2 {[%clk 0:00:03]} 87. Rb2+ {[%clk 0:00:08]}  Ka1 {[%clk 0:00:04]} 88. Rh2 {[%clk 0:00:09]}  Ra2 {[%clk 0:00:03]} 89. Rh8 {[%clk 0:00:06]}  Rc2 {[%clk 0:00:03]} 90. Be3 {[%clk 0:00:05]}  Kb1 {[%clk 0:00:03]} 91. Bd4 {[%clk 0:00:06]}  Kc1 {[%clk 0:00:03]} 92. Rh1+ {[%clk 0:00:05]}  Kb2 {[%clk 0:00:04]} 93. Ke5 {[%clk 0:00:06]}  Kb3 {[%clk 0:00:04]} 94. Rb1+ {[%clk 0:00:06]}  Rb2 {[%clk 0:00:03]} 95. Rxb2+ {[%clk 0:00:05]}  Kxb2 {[%clk 0:00:04]} 96. Kd5 {[%clk 0:00:06]}  Kc2 {[%clk 0:00:05]} 97. Ke5 {[%clk 0:00:07]}  Kb3 {[%clk 0:00:05]} 98. Kd6 {[%clk 0:00:08]}  Bc2 {[%clk 0:00:06]} 99. Kc5 {[%clk 0:00:09]}  Bb1 {[%clk 0:00:07]} 100. Kd6 {[%clk 0:00:10]}  Bc2 {[%clk 0:00:07]} 101. Kc5 {[%clk 0:00:11]}  Bd3 {[%clk 0:00:08]} 102. Kd6 {[%clk 0:00:12]}  Kc2 {[%clk 0:00:08]} 103. Kc5 {[%clk 0:00:13]}  Kd2 {[%clk 0:00:09]} 104. Kd6 {[%clk 0:00:13]}  Ke2 {[%clk 0:00:10]} 105. Kc5 {[%clk 0:00:14]}  Kf3 {[%clk 0:00:10]} 106. Kd6 {[%clk 0:00:15]}  Kg4 {[%clk 0:00:11]} 107. Kc5 {[%clk 0:00:16]}  Kf5 {[%clk 0:00:10]} 108. Kd6 {[%clk 0:00:17]}  Ke4 {[%clk 0:00:10]} 109. Kc5 {[%clk 0:00:18]}  Kf5 {[%clk 0:00:09]} 110. Kc6 {[%clk 0:00:19]}  Kg6 {[%clk 0:00:10]} 111. Kd6 {[%clk 0:00:19]}  Kf7 {[%clk 0:00:11]} 112. Kc5 {[%clk 0:00:20]}  Ke6 {[%clk 0:00:11]} 113. Kc6 {[%clk 0:00:21]}  Ke7 {[%clk 0:00:09]} 114. Kc5 {[%clk 0:00:22]}  Kd7 {[%clk 0:00:09]} 115. Kb6 {[%clk 0:00:22]}  Kd6 {[%clk 0:00:09]} 116. Kb5 {[%clk 0:00:23]}  Kd5 {[%clk 0:00:10]} 117. Kb4 {[%clk 0:00:24]}  Ke4 {[%clk 0:00:10]} 118. Ka5 {[%clk 0:00:25]}  Kf3 {[%clk 0:00:11]} 119. Kb5 {[%clk 0:00:26]}  Ke2 {[%clk 0:00:12]} 120. Kc5 {[%clk 0:00:27]}  Kd1 {[%clk 0:00:13]} 121. Kd5 {[%clk 0:00:28]}  Kc2 {[%clk 0:00:13]} 122. Ke5 {[%clk 0:00:29]}  Kb3 {[%clk 0:00:13]} 123. Kd5 {[%clk 0:00:29]}  Bc2 {[%clk 0:00:13]} 124. Kc5 {[%clk 0:00:30]} 1/2-1/2


[Site "https://www.chess.com"]